fUSD/lending_fUSD_20240726
["ID","MTS","AMOUNT","RATE_DAILY","PERIOD"]
[333248187,1721977840999,-500.0,0.00010998,2]
[333248188,1721977841008,-620.7307,0.00010998,2]
[333248189,1721977841017,-500.0,0.00010998,2]
[333248190,1721977841026,-500.0,0.00010998,2]
[333248191,1721977841036,-500.0,0.00010998,2]
[333248192,1721977841046,-546.16832706,0.00010998,2]
[333248193,1721977841055,-444.59836794,0.00010998,2]
[333248194,1721977841065,-324.73425502,0.00010998,2]
[333248195,1721977841076,-500.0,0.00010999,2]
[333248196,1721977841086,-500.0,0.00010999,2]
[333248197,1721977841095,-500.0,0.00010999,2]
[333248198,1721977841104,-500.0,0.00010999,2]
[333248199,1721977841114,-551.4,0.00010999,2]
[333248200,1721977841123,-500.0,0.00010999,2]
[333248201,1721977841133,-500.0,0.00010999,2]
[333248202,1721977841143,-509.86325486,0.00010999,2]
[333248203,1721977841152,-500.0,0.00010999,2]
[333248204,1721977841161,-154.1455,0.00010999,2]
[333248205,1721977841171,-500.0,0.00010999,2]
[333248206,1721977841180,-500.0,0.00010999,2]
[333248207,1721977841189,-500.0,0.00010999,2]
[333248208,1721977841199,-287.55122626,0.00010999,2]
[333248209,1721977841208,-289.94877375,0.00010999,2]
[333248210,1721977841217,-412.14185051,0.00010999,2]
[333248211,1721977841227,-279.35194673,0.00010999,2]
[333248212,1721977841237,-500.0,0.00010999,2]
[333248213,1721977841246,-360.42,0.00010999,2]
[333248214,1721977841255,-328.6,0.00010999,2]
[333248215,1721977841264,-500.0,0.00010999,2]
[333248216,1721977841273,-500.0,0.00010999,2]
[333248217,1721977841283,-500.0,0.00010999,2]
[333248218,1721977841292,-500.0,0.00010999,2]
[333248219,1721977841302,-480.4175,0.00010999,2]
[333248220,1721977841311,-500.0,0.00010999,2]
[333248221,1721977841323,-500.0,0.00010999,2]
[333248222,1721977841332,-434.33173371,0.00010999,2]
[333248223,1721977841342,-203.711,0.00011,2]
[333248224,1721977841352,-26283.58630924,0.00011,2]
[333248225,1721977841364,-1226.66149548,0.00011,2]
[333248226,1721977841375,-1197.8095201,0.00011,2]
[333248227,1721977841391,-1751.0,0.00011,2]
[333248228,1721977842433,-179.35,0.00010424,2]
[333248229,1721977842443,-55365.65000004,0.00011,2]
[333248230,1721977842455,-802.31499927,0.00011,2]
[333248278,1721977843488,-10512.23357312,0.00011,2]
[333248288,1721977843616,-1496.0,0.00011,2]
[333248289,1721977843628,-13558.22609381,0.00011,2]
[333248290,1721977843637,-500.0,0.00011,2]
[333248291,1721977843646,-500.0,0.00011,2]
[333248292,1721977843656,-500.0,0.00011,2]
[333248293,1721977843665,-500.0,0.00011,2]
[333248294,1721977843675,-23446.52890112,0.00011,2]
[333248295,1721977843686,-9782.00000001,0.00011,2]
[333248296,1721977843698,-5036.1,0.00011,2]
[333248297,1721977843708,-2790.39273197,0.00011,2]
[333248298,1721977843720,-513.18500005,0.00011,2]
[333248299,1721977843736,-16130.6152453,0.00011,2]
[333248450,1721977846705,-160.5,8.537e-05,2]
[333248451,1721977846715,-234709.2369746,0.00011,2]
[333248452,1721977846726,-17265.0,0.00011,2]
[333248453,1721977846737,-362.45786,0.00011,2]
[333248454,1721977846748,-1610.8780936,0.00011,2]
[333248456,1721978413450,1430.15,0.0001337,30]
[333248465,1721978756060,2864.62952497,6.94e-05,2]
[333248469,1721978786330,158.87294729,6.94e-05,2]
[333248470,1721978786499,20367.51089698,6.94e-05,2]
[333248471,1721978786606,7569.89827325,6.94e-05,2]
[333248472,1721978786753,155.0,6.94e-05,2]
[333248473,1721978790611,363.58073735,6.94e-05,2]
[333248474,1721978792255,14771.07571126,6.94e-05,2]
[333248475,1721978792636,199.73247078,6.94e-05,2]
[333248476,1721978793624,871.22841201,6.94e-05,2]
[333248479,1721978797278,155.0,6.94e-05,2]
[333248480,1721978797577,220.12459623,6.94e-05,2]
[333248481,1721978798137,155.20228337,6.94e-05,2]
[333248482,1721978798985,411.44480674,6.94e-05,2]
[333248483,1721978802392,-842.62,8.296e-05,2]
[333248484,1721978804354,155.0,6.94e-05,2]
[333248485,1721978812264,155.0,6.94e-05,2]
[333248486,1721978813000,790.19026682,6.94e-05,2]
[333248487,1721978815929,411.44480674,6.94e-05,2]
[333248488,1721978836866,155.0,6.94e-05,2]
[333248489,1721978837222,291.25364528,6.94e-05,2]
[333248490,1721978844865,797.48730297,6.94e-05,2]
[333248491,1721978849785,1369.73875933,6.94e-05,2]
[333248492,1721978874854,797.48730297,6.94e-05,2]
[333248493,1721978878103,7569.89827325,6.94e-05,2]
[333248494,1721978883602,363.58073735,6.94e-05,2]
[333248495,1721978887343,158.87294729,6.94e-05,2]
[333248496,1721978887765,155.0,6.94e-05,2]
[333248497,1721978888940,871.22841201,6.94e-05,2]
[333248498,1721978892005,790.19026682,6.94e-05,2]
[333248499,1721978905378,5942.40600833,6.94e-05,2]
[333248500,1721978909370,155.0,6.94e-05,2]
[333248501,1721978930292,411.44480674,6.94e-05,2]
[333248502,1721978931278,209.45851,6.94e-05,2]
[333248503,1721978941284,291.25364528,6.94e-05,2]
[333248504,1721978944860,216.84666303,6.94e-05,2]
[333248505,1721978972112,3859.59764579,6.94e-05,2]
[333248506,1721978972137,3710.30062746,6.94e-05,2]
[333248507,1721978973009,790.19026682,6.94e-05,2]
[333248508,1721978974604,363.58073735,6.94e-05,2]
[333248509,1721978975344,158.87294729,6.94e-05,2]
[333248510,1721978983946,871.22841201,6.94e-05,2]
[333248511,1721978995866,797.48730297,6.94e-05,2]
[333248512,1721978997261,155.0,6.94e-05,2]
[333248516,1721979002902,150.0,6.94e-05,2]
[333248517,1721979003011,790.19026682,6.94e-05,2]
[333248518,1721979003096,150.0,6.94e-05,2]
[333248519,1721979003265,150.0,6.94e-05,2]
[333248520,1721979003450,156.54198804,6.94e-05,2]
[333248521,1721979013377,155.0,6.94e-05,2]
[333248522,1721979014104,871.22841201,6.94e-05,2]
[333248551,1721979031628,-291.25364528,8.412e-05,2]
[333248552,1721979031637,-411.44480674,8.412e-05,2]
[333248553,1721979031648,-158.87294729,8.412e-05,2]
[333248554,1721979031662,-7569.89827325,8.412e-05,2]
[333248555,1721979031672,-363.58073735,8.412e-05,2]
[333248556,1721979031682,-936.38578103,8.412e-05,2]
[333248557,1721979031692,-250.0,9.806e-05,2]
[333248558,1721979031701,-300.0,9.999e-05,2]
[333248559,1721979031710,-2946.90647913,0.0001,2]
[333248560,1721979031719,-1027.9,0.00010059,2]
[333248561,1721979031731,-1574.57,0.00010146,2]
[333248562,1721979031741,-200.0,0.00010146,2]
[333248563,1721979031751,-23900.0,0.00010148,2]
[333248564,1721979031760,-600.0,0.00010165,2]
[333248565,1721979031770,-400.0,0.0001022,2]
[333248566,1721979031779,-842.62,0.00010559,2]
[333248567,1721979031789,-150.99,0.00010559,2]
[333248568,1721979031799,-3282.094,0.00010594,2]
[333248569,1721979031808,-5122.0,0.00010594,2]
[333248570,1721979031818,-749.93,0.00010594,2]
[333248571,1721979031827,-14910.44160973,0.00010594,2]
[333248572,1721979031861,-2983.94360785,0.00010594,2]
[333248574,1721979031872,-2448.9258045,0.00010594,2]
[333248576,1721979031883,-13455.86868,0.00010594,2]
[333248606,1721979037544,-298.41728368,0.00010594,2]
[333248608,1721979037593,-502.95553972,0.00010594,2]
[333248609,1721979037646,-354.65009676,0.00010594,2]
[333248610,1721979037808,-272.68675904,0.00010594,2]
[333248730,1721979039916,-3134.11061872,0.00010594,2]
[333248731,1721979039925,-550.0,0.00010594,2]
[333248732,1721979039935,-1033.38595164,0.00010594,2]
[333249660,1721979050060,155.0,6.94e-05,2]
[333249661,1721979058034,1310.97,0.0001337,30]
[333249692,1721979596553,1201.72,0.0001337,30]
[333249695,1721980138870,1101.57,0.0001337,30]
[333249696,1721980216715,1000.0,0.00016299,120]
[333249697,1721980227953,3000.0,0.00015,30]
[333249712,1721980231696,-642.3977412,8.219e-05,2]
[333249722,1721980231925,-124.1222588,8.219e-05,2]
[333249723,1721980231935,-250.0,9.639e-05,2]
[333249724,1721980231944,-300.0,9.673e-05,2]
[333249725,1721980231954,-1545.87774,9.674e-05,2]
[333249726,1721980231964,-956.69375819,9.674e-05,2]
[333249727,1721980231976,-1414.87232566,9.674e-05,2]
[333249741,1721980232378,-2461.08774786,9.674e-05,2]
[333249742,1721980232389,-578.5596183,9.674e-05,2]
[333249743,1721980232401,-7628.45880999,9.674e-05,2]
[333249744,1721980232410,-901.5665,9.724e-05,2]
[333249745,1721980232419,-1000.0,9.813e-05,2]
[333249746,1721980232428,-300.0,9.9e-05,3]
[333249747,1721980232437,-700.0,0.0001,3]
[333249748,1721980232446,-150.0,0.00010082,2]
[333249749,1721980232456,-1000.0,0.000101,3]
[333249750,1721980232465,-150.0,0.00010199,2]
[333249751,1721980232474,-5517.37,0.000102,2]
[333249752,1721980232484,-499.99,0.000102,2]
[333249753,1721980232493,-3136.54,0.000102,2]
[333249754,1721980232502,-455.56,0.000102,2]
[333249755,1721980232512,-574.18,0.000102,2]
[333249756,1721980232521,-299.99,0.000102,2]
[333249757,1721980232530,-855.77,0.000102,2]
[333249758,1721980232539,-300.0,0.000102,2]
[333249759,1721980232548,-722.26,0.000102,2]
[333249760,1721980232558,-300.0,0.000102,2]
[333249761,1721980232567,-329.96,0.000102,2]
[333249762,1721980232576,-1400.0,0.000102,3]
[333249763,1721980232585,-1700.0,0.000103,3]
[333249764,1721980232594,-300.0,0.000104,3]
[333249765,1721980232603,-527.26,0.00010461,2]
[333249766,1721980232612,-766.52,0.00010461,2]
[333249767,1721980232621,-3000.0,0.0001049,2]
[333249768,1721980232631,-300.0,0.000105,3]
[333249769,1721980232640,-300.0,0.000106,3]
[333249770,1721980232649,-305.97,0.0001063,2]
[333249771,1721980232658,-420.0,0.0001064,2]
[333249772,1721980232667,-300.0,0.000107,3]
[333249773,1721980232677,-194.2553856,0.0001078,2]
[333249774,1721980232686,-3175.6556,0.000108,2]
[333249775,1721980232696,-896.0,0.000108,3]
[333249776,1721980232705,-413.78706898,0.00010838,2]
[333249777,1721980232715,-22371.64583745,0.0001088,2]
[333249778,1721980232724,-182.86320381,0.00010898,2]
[333249779,1721980232733,-242.7045,0.000109,2]
[333249780,1721980232743,-281.1116,0.000109,2]
[333249781,1721980232752,-138758.71882904,0.000109,2]
[333249782,1721980232763,-700.0,0.000109,2]
[333249783,1721980232988,-2324.62587218,0.000109,2]
[333249784,1721980233151,-678.69156372,0.000109,2]
[333249809,1721980237758,-323.03318148,0.000109,2]
[333249812,1721980237770,-22331.42065358,0.000109,2]
[333249815,1721980237779,-674.04080023,0.000109,2]
[333249817,1721980237789,-10000.0,0.000109,2]
[333249819,1721980237799,-400.68262396,0.000109,2]
[333249821,1721980237808,-273.90957045,0.000109,2]
[333249823,1721980237817,-150.33981962,0.000109,2]
[333249825,1721980237827,-158.087,0.0001092,2]
[333249827,1721980237836,-376.71601999,0.00010952,2]
[333249829,1721980237846,-200.0,0.00010959,2]
[333249831,1721980237855,-1053.52,0.00010959,2]
[333249833,1721980237865,-150.0,0.00010959,2]
[333249834,1721980237874,-250.0,0.00010959,2]
[333249835,1721980237885,-501.7,0.00010959,2]
[333249836,1721980237895,-150.0,0.00010959,2]
[333249837,1721980237904,-3284.0,0.00010959,2]
[333249838,1721980237914,-1995.0,0.00010959,2]
[333249839,1721980237924,-4534.40209812,0.00010997,2]
[333249840,1721980237934,-2001.69457731,0.00010997,2]
[333249841,1721980237943,-500.0,0.00010998,2]
[333249842,1721980237953,-500.0,0.00010998,2]
[333249843,1721980237962,-500.0,0.00010998,2]
[333249844,1721980237971,-500.0,0.00010998,2]
[333249845,1721980237980,-501.87349612,0.00010998,2]
[333249846,1721980237990,-482.97431417,0.00010998,2]
[333249847,1721980237999,-500.0,0.00010999,2]
[333249848,1721980238009,-500.0,0.00010999,2]
[333249849,1721980238018,-500.0,0.00010999,2]
[333249850,1721980238032,-500.0,0.00010999,2]
[333249852,1721980238041,-344.40386685,0.00010999,2]
[333249854,1721980238050,-194.68430357,0.00010999,2]
[333249856,1721980238059,-2255.79387038,0.00010999,2]
[333249858,1721980238069,-193.60971899,0.00010999,2]
[333249860,1721980238078,-4632.31,0.00010999,2]
[333249862,1721980238087,-4632.31,0.00010999,2]
[333249863,1721980238096,-4632.31,0.00010999,2]
[333249865,1721980238107,-4632.31,0.00010999,2]
[333249867,1721980238116,-4632.31,0.00010999,2]
[333249869,1721980238125,-4632.31,0.00010999,2]
[333249870,1721980238138,-4632.31,0.00010999,2]
[333249871,1721980238147,-4632.31,0.00010999,2]
[333249872,1721980238156,-4632.31,0.00010999,2]
[333249873,1721980238168,-4632.31,0.00010999,2]
[333249874,1721980238177,-4632.31,0.00010999,2]
[333249875,1721980238186,-4632.31,0.00010999,2]
[333249876,1721980238195,-4632.31,0.00010999,2]
[333249877,1721980238205,-4632.31,0.00010999,2]
[333249878,1721980238214,-4632.31,0.00010999,2]
[333249879,1721980238223,-4632.31,0.00010999,2]
[333249880,1721980238232,-4632.31,0.00010999,2]
[333249881,1721980238241,-4632.31,0.00010999,2]
[333249882,1721980238250,-4632.31,0.00010999,2]
[333249883,1721980238259,-4632.31,0.00010999,2]
[333249884,1721980238269,-4632.31,0.00010999,2]
[333249885,1721980238278,-4632.31,0.00010999,2]
[333249886,1721980238287,-4632.31,0.00010999,2]
[333249887,1721980238296,-4632.40126139,0.00010999,2]
[333249888,1721980238305,-150.0,0.00010999,2]
[333249889,1721980238314,-453.6493534,0.00010999,2]
[333249890,1721980238323,-154.89292255,0.00010999,2]
[333249891,1721980238333,-388.27372932,0.00011,2]
[333249892,1721980238345,-8073.2,0.00011,2]
[333249893,1721980238356,-137530.0,0.00011,2]
[333249894,1721980238374,-1122.36103529,0.00011,2]
[333249898,1721980239906,-1386.0961545,0.00011,2]
[333250038,1721980242725,-48647.89752466,0.00011,2]
[333250039,1721980242735,-388731.46673851,0.00011,2]
[333250040,1721980242746,-421.401,0.00011,2]
[333250041,1721980242778,-1789.29207492,0.00011,2]
[333250045,1721980243043,-269.55483921,0.00011,2]
[333250049,1721980243072,-406.07,0.00011,2]
[333250054,1721980245759,-5989.69837893,0.00011,2]
[333250070,1721980246455,-438.217861,0.00011,2]
[333250071,1721980246467,-1239.88380057,0.00011,2]
[333250072,1721980246478,-2348.0154016,0.00011,2]
[333250073,1721980246490,-582.69514552,0.00011,2]
[333250074,1721980246503,-854.0,0.00011,2]
[333250075,1721980246514,-2453.82899306,0.00011,2]
[333250076,1721980246525,-400.0,0.00011,2]
[333250077,1721980246536,-2139.91841431,0.00011,2]
[333250078,1721980246547,-618.3903605,0.00011,2]
[333250079,1721980246558,-1976.79,0.00011,2]
[333250080,1721980246569,-1963.28462603,0.00011,2]
[333250081,1721980246580,-393.76878671,0.00011,2]
[333250082,1721980246591,-3107.0835674,0.00011,2]
[333250083,1721980246603,-10391.97917367,0.00011,2]
[333250084,1721980246614,-4028.06691352,0.00011,2]
[333250085,1721980246625,-2755.66374611,0.00011,2]
[333250086,1721980246638,-873.74712415,0.00011,2]
[333250087,1721980246648,-1280.55912122,0.00011,2]
[333250088,1721980246659,-3299.11777029,0.00011,2]
[333250090,1721980694892,1009.77,0.0001337,30]
[333250092,1721981015826,499.348,1e-05,120]
[333250093,1721981048610,871.22841201,1e-05,2]
[333250094,1721981056234,363.58073735,1e-05,2]
[333250095,1721981093605,561.51540152,1.212e-05,2]
[333250096,1721981096739,434.48405773,1.212e-05,2]
[333250097,1721981119568,1818.67469748,2e-05,2]
[333250098,1721981163948,790.19026682,2e-05,2]
[333250099,1721981168735,1256.07719627,2.424e-05,2]
[333250100,1721981169580,947.52951739,2.424e-05,2]
[333250101,1721981199445,790.19026682,2.424e-05,2]
[333250102,1721981208400,1000.0,0.00016299,120]
[333250103,1721981217021,291.25364528,2.424e-05,2]
[333250104,1721981223043,925.62,0.0001337,30]
[333250105,1721981228734,1256.07719627,2.938e-05,2]
[333250106,1721981231982,291.25364528,2.424e-05,2]
[333250107,1721981234583,947.52951739,2.938e-05,2]
[333250108,1721981239460,790.19026682,2.938e-05,2]
[333250109,1721981274742,1256.07719627,3.561e-05,2]
[333250110,1721981285433,291.32326188,3.561e-05,2]
[333250111,1721981316497,790.19026682,3.561e-05,2]
[333250114,1721981344589,947.52951739,4.316e-05,2]
[333250115,1721981344740,1256.07719627,4.316e-05,2]
[333250116,1721981355691,411.95790619,3.561e-05,2]
[333250127,1721981431924,-697.64,8.219e-05,2]
[333250128,1721981431935,-250.0,9.69e-05,2]
[333250129,1721981431945,-250.0,9.69e-05,2]
[333250130,1721981431954,-300.0,9.816e-05,2]
[333250131,1721981431965,-300.0,9.816e-05,2]
[333250132,1721981431975,-21027.2,9.817e-05,2]
[333250133,1721981431985,-600.0,9.9e-05,3]
[333250134,1721981431994,-446.11,9.932e-05,2]
[333250135,1721981432004,-1000.0,9.937e-05,2]
[333250136,1721981432014,-1200.0,0.0001,3]
[333250137,1721981432023,-334.13,0.00010055,2]
[333250138,1721981432033,-150.99,0.000101,2]
[333250139,1721981432043,-468.87,0.000101,2]
[333250140,1721981432053,-499.99,0.000101,2]
[333250141,1721981432063,-299.99,0.000101,2]
[333250142,1721981432073,-1800.0,0.000101,3]
[333250143,1721981432082,-850.31,0.00010192,2]
[333250144,1721981432092,-2500.0,0.000102,3]
[333250145,1721981432101,-3100.0,0.000103,3]
[333250146,1721981432111,-600.0,0.000104,3]
[333250147,1721981432121,-697.64,0.00010461,2]
[333250148,1721981432131,-64.07174328,0.0001047,2]
[333250149,1721981432144,-566.07825672,0.0001047,2]
[333250150,1721981432153,-500.88123644,0.000105,3]
[333250151,1721981432165,-99.11876356,0.000105,3]
[333250152,1721981432175,-234.36023649,0.000106,3]
[333250153,1721981432187,-365.63976351,0.000106,3]
[333250154,1721981432196,-178.2444894,0.000107,3]
[333250155,1721981432217,-389.00967572,0.000107,3]
[333250156,1721981432229,-32.74583488,0.000107,3]
[333250157,1721981432238,-300.0,0.00010722,2]
[333250158,1721981432248,-194.2553857,0.0001078,2]
[333250159,1721981432258,-420.0,0.00010798,2]
[333250160,1721981432268,-420.0,0.00010798,2]
[333250161,1721981432277,-150.0,0.00010799,2]
[333250162,1721981432287,-548.60361878,0.000108,2]
[333250163,1721981432476,-9537.10640704,0.000108,2]
[333250164,1721981432488,-326.80050338,0.000108,2]
[333250165,1721981432499,-1807.24371402,0.000108,2]
[333250166,1721981432513,-2274.36,0.000108,2]
[333250167,1721981432682,-2157.70172192,0.000108,2]
[333250168,1721981432694,-588.74678369,0.000108,2]
[333250169,1721981432705,-2009.17611856,0.000108,2]
[333250170,1721981432842,-66785.0,0.000108,2]
[333250171,1721981432853,-1676.12452515,0.000108,2]
[333250177,1721981437898,-1515.53638437,0.000108,2]
[333250178,1721981437951,-302.52178472,0.000108,2]
[333250179,1721981437962,-343.26358931,0.000108,2]
[333250181,1721981438232,-969.78150889,0.000108,2]
[333250183,1721981438244,-4300.0,0.000108,2]
[333250185,1721981438256,-1886.88,0.000108,2]
[333250188,1721981438267,-4270.98974017,0.000108,2]
[333250189,1721981438275,-1620.5634,0.000108,2]
[333250191,1721981438284,-1000.0,0.000108,3]
[333250193,1721981438294,-3000.0,0.0001089,2]
[333250195,1721981438303,-801.175,0.0001089,2]
[333250197,1721981438312,-443.6594,0.0001089,2]
[333250198,1721981438321,-3370.7638,0.0001089,2]
[333250200,1721981438330,-9369.18741249,0.000109,2]
[333250202,1721981438345,-630.81258751,0.000109,2]
[333250204,1721981438354,-166.5468764,0.000109,2]
[333250206,1721981438363,-530.21131214,0.000109,2]
[333250208,1721981438372,-97.76905282,0.000109,2]
[333250211,1721981438383,-432.44225933,0.000109,2]
[333250214,1721981438392,-223.21652696,0.000109,2]
[333250216,1721981438401,-500.0,0.00010912,2]
[333250218,1721981438410,-158.087,0.0001092,2]
[333250220,1721981438420,-200.0,0.00010959,2]
[333250222,1721981438429,-179.72,0.00010959,2]
[333250224,1721981438444,-250.0,0.00010959,2]
[333250226,1721981438453,-178.94,0.00010959,2]
[333250228,1721981438462,-755.93485645,0.0001099,2]
[333250230,1721981438473,-12212.22040255,0.0001099,2]
[333250232,1721981438486,-14736.84362093,0.0001099,2]
[333250235,1721981438498,-998.52381322,0.0001099,2]
[333250236,1721981438509,-408.03354765,0.0001099,2]
[333250368,1721981440046,-6652.49578805,0.0001099,2]
[333250370,1721981440057,-384.644286,0.0001099,2]
[333250372,1721981440070,-359.38972543,0.0001099,2]
[333250376,1721981440099,-3366.05,0.0001099,2]
[333250378,1721981440110,-147013.1394155,0.0001099,2]
[333250383,1721981440153,-2980.52193553,0.0001099,2]
[333250386,1721981440165,-625.3138455,0.0001099,2]
[333250391,1721981440207,-485.2,0.0001099,2]
[333250397,1721981440262,-1415.38814263,0.0001099,2]
[333250399,1721981440274,-1300.47673645,0.0001099,2]
[333250405,1721981440319,-527.39556223,0.0001099,2]
[333250411,1721981440375,-131277.59961688,0.0001099,2]
[333250413,1721981440385,-3688.80275,0.00010998,2]
[333250415,1721981440395,-9703.9376804,0.00010998,2]
[333250417,1721981440404,-36413.61737559,0.00010998,2]
[333250420,1721981440426,-536.19366701,0.00010998,2]
[333250422,1721981440438,-325.41737,0.00010998,2]
[333250424,1721981440456,-1048.582763,0.00010998,2]
[333250428,1721981440487,-707.12336694,0.00010998,2]
[333250678,1721981442997,-1113.8701207,0.00010998,2]
[333250682,1721981443008,-28199.88396936,0.00010998,2]
[333250684,1721981443018,-24274.1590145,0.00010999,2]
[333250685,1721981443027,-484.29756791,0.00010999,2]
[333250687,1721981443036,-500.0,0.00010999,2]
[333250689,1721981443045,-500.0,0.00010999,2]
[333250691,1721981443054,-500.0,0.00010999,2]
[333250693,1721981443063,-500.0,0.00010999,2]
[333250694,1721981443072,-1031.32671218,0.00010999,3]
[333250696,1721981443082,-1031.32671218,0.00010999,3]
[333250698,1721981443091,-1031.32671217,0.00010999,3]
[333250700,1721981443100,-500.0,0.00010999,2]
[333250702,1721981443109,-500.0,0.00010999,2]
[333250703,1721981443118,-500.0,0.00010999,2]
[333250705,1721981443127,-500.0,0.00010999,2]
[333250706,1721981443136,-500.0,0.00010999,2]
[333250707,1721981443145,-243.64364145,0.00010999,2]
[333250708,1721981443154,-500.0,0.00010999,2]
[333250709,1721981443163,-500.0,0.00010999,2]
[333250710,1721981443172,-500.0,0.00010999,2]
[333250711,1721981443181,-500.0,0.00010999,2]
[333250712,1721981443190,-500.0,0.00010999,2]
[333250713,1721981443199,-563.31369205,0.00010999,2]
[333250714,1721981443208,-500.0,0.00010999,2]
[333250715,1721981443217,-500.0,0.00010999,2]
[333250716,1721981443227,-500.0,0.00010999,2]
[333250717,1721981443236,-500.0,0.00010999,2]
[333250718,1721981443246,-503.46677896,0.00010999,2]
[333250719,1721981443255,-221.38141572,0.00010999,2]
[333250720,1721981443264,-150.0,0.00010999,2]
[333250721,1721981443273,-150.0,0.00011,2]
[333250722,1721981443282,-21418.20619252,0.00011,2]
[333250723,1721981443294,-14061.047,0.00011,2]
[333250724,1721981443305,-500.0,0.00011,2]
[333250725,1721981443316,-1598.31428799,0.00011,2]
[333250726,1721981443327,-2360.62891965,0.00011,2]
[333250727,1721981443338,-45099.12075383,0.00011,2]
[333250728,1721981443348,-669.05626928,0.00011,2]
[333250729,1721981443367,-298.93134934,0.00011,2]
[333250730,1721981443378,-653.347,0.00011,2]
[333250731,1721981443474,790.19026682,4.316e-05,2]
[333250734,1721981445938,-8425.95944213,0.00011,2]
[333250735,1721981446479,-3113.53329402,0.00011,2]
[333250736,1721981466638,1175.55444732,5e-05,2]
[333250737,1721981470890,3067.43917737,4.316e-05,2]
[333250738,1721981472769,1256.07719627,4.316e-05,2]
[333250739,1721981484608,155.0,5e-05,2]
[333250740,1721981492994,797.48730297,5e-05,2]
[333250741,1721981496453,155.0,5e-05,2]
[333250742,1721981498553,74635.90123365,5e-05,2]
[333250743,1721981504513,155.0,5e-05,2]
[333250744,1721981516686,1175.55444732,6.061e-05,2]
[333250745,1721981520285,7569.89827325,5e-05,2]
[333250746,1721981526403,155.0,5e-05,2]
[333250747,1721981529498,797.48730297,6.061e-05,2]
[333250748,1721981530890,3067.43917737,6.061e-05,2]
[333250749,1721981533065,155.0,6.061e-05,2]
[333250750,1721981537477,201.43167687,6.061e-05,2]
[333250753,1721981548068,158.87294729,5e-05,2]
[333250754,1721981563640,1175.55444732,6.061e-05,2]
[333250755,1721981569516,155.0,5e-05,2]
[333250758,1721981579503,797.48730297,6.061e-05,2]
[333250759,1721981581765,7569.89827325,6.061e-05,2]
[333250760,1721981583111,155.0,6.061e-05,2]
[333250761,1721981583896,3067.43917737,6.061e-05,2]
[333250762,1721981588613,947.52951739,6.061e-05,2]
[333250763,1721981591523,158.87294729,6.061e-05,2]
[333250764,1721981613652,1175.55444732,6.061e-05,2]
[333250765,1721981635791,7569.89827325,6.061e-05,2]
[333250766,1721981638896,3067.43917737,6.061e-05,2]
[333250767,1721981644526,172.49600257,6.061e-05,2]
[333250770,1721981694522,224.55669351,6.061e-05,2]
[333250771,1721981752776,848.48,0.0001337,30]
[333250772,1721981769009,797.48730297,6.061e-05,2]
[333250774,1721981823292,1120.92120439,6.061e-05,2]
[333250775,1721981863992,810.2569741,6.061e-05,2]
[333250776,1721982000927,790.19026682,6.061e-05,2]
[333250779,1721982110925,224.46863623,6.061e-05,2]
[333250783,1721982305049,777.77,0.0001337,30]
[333250791,1721982622261,157.0,7e-05,2]
[333250826,1721982632201,-635.61,8.298e-05,2]
[333250827,1721982632210,-604.23755703,9e-05,2]
[333250828,1721982632220,-150.0,9.999e-05,2]
[333250829,1721982632229,-300.0,9.999e-05,2]
[333250830,1721982632238,-199.8624425,0.0001,2]
[333250831,1721982632247,-37199.0409512,0.0001,2]
[333250832,1721982632257,-250.0,0.00010086,2]
[333250833,1721982632267,-1000.0,0.00010128,2]
[333250834,1721982632276,-250.0,0.00010258,2]